[Event "Titled Tuesday Blitz June 13 Early 2023"]
[White "Bharath Subramaniyam H"]
[Black "Caruana, Fabiano"]
[WhiteFideId "46634827"]
[BlackFideId "2020009"]
[WhiteElo "2400"]
[BlackElo "2832"]
[Result "0-1"]
[Round "5"]
[TimeControl "180+2"]
[Date "2023.06.13"]
[WhiteClock "0:00:05"]
[BlackClock "0:00:15"]
[Board "2"]

1. b3 {[%clk 0:02:59]}  Nf6 {[%clk 0:02:57]} 2. Bb2 {[%clk 0:03:00]}  g6 {[%clk 0:02:58]} 3. Nf3 {[%clk 0:03:00]}  Bg7 {[%clk 0:02:58]} 4. g3 {[%clk 0:03:01]}  O-O {[%clk 0:02:58]} 5. Bg2 {[%clk 0:03:02]}  d6 {[%clk 0:02:58]} 6. d4 {[%clk 0:03:02]}  Nbd7 {[%clk 0:02:57]} 7. O-O {[%clk 0:03:01]}  e5 {[%clk 0:02:57]} 8. dxe5 {[%clk 0:02:53]}  Ng4 {[%clk 0:02:57]} 9. Nc3 {[%clk 0:02:45]}  Ndxe5 {[%clk 0:02:54]} 10. Nxe5 {[%clk 0:02:40]}  Nxe5 {[%clk 0:02:55]} 11. Qc1 {[%clk 0:02:28]}  c6 {[%clk 0:02:54]} 12. e4 {[%clk 0:02:19]}  Re8 {[%clk 0:02:48]} 13. h3 {[%clk 0:02:17]}  b5 {[%clk 0:02:40]} 14. a4 {[%clk 0:02:07]}  b4 {[%clk 0:02:39]} 15. Nd1 {[%clk 0:02:07]}  c5 {[%clk 0:02:30]} 16. Ne3 {[%clk 0:02:04]}  Bb7 {[%clk 0:02:29]} 17. f4 {[%clk 0:02:00]}  Nc6 {[%clk 0:02:29]} 18. Bxg7 {[%clk 0:02:00]}  Kxg7 {[%clk 0:02:30]} 19. f5 {[%clk 0:01:46]}  Nd4 {[%clk 0:02:25]} 20. f6+ {[%clk 0:01:43]}  Kh8 {[%clk 0:02:25]} 21. Kh2 {[%clk 0:01:24]}  Bxe4 {[%clk 0:02:20]} 22. Nd5 {[%clk 0:01:15]}  Bxg2 {[%clk 0:01:15]} 23. Qh6 {[%clk 0:01:11]}  Rg8 {[%clk 0:01:15]} 24. Kxg2 {[%clk 0:01:05]}  Qd7 {[%clk 0:01:12]} 25. Ne7 {[%clk 0:00:28]}  Qb7+ {[%clk 0:01:12]} 26. Kg1 {[%clk 0:00:22]}  Nf3+ {[%clk 0:00:51]} 27. Kf2 {[%clk 0:00:22]}  Nh2 {[%clk 0:00:48]} 28. Kg1 {[%clk 0:00:11]}  Nxf1 {[%clk 0:00:47]} 29. Rxf1 {[%clk 0:00:12]}  Qe4 {[%clk 0:00:44]} 30. Rf4 {[%clk 0:00:11]}  Qe3+ {[%clk 0:00:41]} 31. Kg2 {[%clk 0:00:11]}  Qd2+ {[%clk 0:00:36]} 32. Kg1 {[%clk 0:00:09]}  Qc1+ {[%clk 0:00:34]} 33. Kg2 {[%clk 0:00:09]}  Qxc2+ {[%clk 0:00:34]} 34. Kg1 {[%clk 0:00:09]}  Qc1+ {[%clk 0:00:34]} 35. Kg2 {[%clk 0:00:09]}  Qd2+ {[%clk 0:00:34]} 36. Kg1 {[%clk 0:00:09]}  Rae8 {[%clk 0:00:28]} 37. Qg5 {[%clk 0:00:03]}  c4 {[%clk 0:00:21]} 38. bxc4 {[%clk 0:00:03]}  b3 {[%clk 0:00:21]} 39. Qb5 {[%clk 0:00:03]}  b2 {[%clk 0:00:20]} 40. Nxg8 {[%clk 0:00:02]}  Re1+ {[%clk 0:00:17]} 41. Rf1 {[%clk 0:00:03]}  Rxf1+ {[%clk 0:00:17]} 42. Kxf1 {[%clk 0:00:03]}  Qc1+ {[%clk 0:00:17]} 43. Kf2 {[%clk 0:00:04]}  b1=Q {[%clk 0:00:17]} 44. Qe8 {[%clk 0:00:04]}  Qf1+ {[%clk 0:00:15]} 45. Ke3 {[%clk 0:00:05]}  Qbd3# {[%clk 0:00:15]} 0-1


[Site "https://www.chess.com"]

[Event "Titled Tuesday Blitz June 13 Early 2023"]
[White "Deac, Bogdan-Daniel"]
[Black "Bacrot, Etienne"]
[WhiteFideId "1226380"]
[BlackFideId "605506"]
[WhiteElo "2644"]
[BlackElo "2672"]
[Result "0-1"]
[Round "5"]
[TimeControl "180+2"]
[Date "2023.06.13"]
[WhiteClock "0:00:00"]
[BlackClock "0:00:03"]
[Board "5"]

1. d4 {[%clk 0:03:00]}  d5 {[%clk 0:03:00]} 2. c4 {[%clk 0:03:00]}  e6 {[%clk 0:03:00]} 3. Nf3 {[%clk 0:03:01]}  Nf6 {[%clk 0:03:01]} 4. Nc3 {[%clk 0:03:01]}  Be7 {[%clk 0:03:00]} 5. g3 {[%clk 0:03:00]}  O-O {[%clk 0:03:00]} 6. Bg2 {[%clk 0:03:01]}  dxc4 {[%clk 0:03:01]} 7. Ne5 {[%clk 0:03:00]}  Nc6 {[%clk 0:02:55]} 8. Bxc6 {[%clk 0:02:59]}  bxc6 {[%clk 0:02:55]} 9. Nxc6 {[%clk 0:02:59]}  Qd6 {[%clk 0:02:51]} 10. Nxe7+ {[%clk 0:03:00]}  Qxe7 {[%clk 0:02:52]} 11. Qa4 {[%clk 0:03:00]}  Nd5 {[%clk 0:02:45]} 12. O-O {[%clk 0:03:00]}  a5 {[%clk 0:02:44]} 13. Re1 {[%clk 0:02:51]}  Ba6 {[%clk 0:02:41]} 14. Qxa5 {[%clk 0:02:16]}  Nb4 {[%clk 0:02:37]} 15. Rd1 {[%clk 0:02:10]}  Rfd8 {[%clk 0:02:18]} 16. Bf4 {[%clk 0:01:57]}  Nc2 {[%clk 0:01:45]} 17. Rac1 {[%clk 0:00:23]}  Nxd4 {[%clk 0:01:45]} 18. Bxc7 {[%clk 0:00:23]}  Rd7 {[%clk 0:01:40]} 19. Bf4 {[%clk 0:00:18]}  Bb7 {[%clk 0:01:24]} 20. Qh5 {[%clk 0:00:10]}  Rad8 {[%clk 0:01:16]} 21. Be5 {[%clk 0:00:07]}  Qc5 {[%clk 0:00:59]} 22. Rxd4 {[%clk 0:00:05]}  Rxd4 {[%clk 0:00:57]} 23. Qg5 {[%clk 0:00:06]}  f6 {[%clk 0:00:38]} 24. Bxf6 {[%clk 0:00:06]}  Qxg5 {[%clk 0:00:39]} 25. Bxg5 {[%clk 0:00:07]}  Ra8 {[%clk 0:00:37]} 26. Be3 {[%clk 0:00:06]}  Rd7 {[%clk 0:00:37]} 27. f3 {[%clk 0:00:06]}  Kf7 {[%clk 0:00:37]} 28. Kf2 {[%clk 0:00:06]}  e5 {[%clk 0:00:36]} 29. a3 {[%clk 0:00:04]}  Ke6 {[%clk 0:00:35]} 30. Bc5 {[%clk 0:00:04]}  Bc6 {[%clk 0:00:32]} 31. Ke3 {[%clk 0:00:04]}  Rad8 {[%clk 0:00:29]} 32. Rc2 {[%clk 0:00:03]}  Rb8 {[%clk 0:00:26]} 33. Bb4 {[%clk 0:00:02]}  g5 {[%clk 0:00:21]} 34. Ne4 {[%clk 0:00:02]}  Bxe4 {[%clk 0:00:21]} 35. Kxe4 {[%clk 0:00:03]}  Rc8 {[%clk 0:00:21]} 36. g4 {[%clk 0:00:02]}  h5 {[%clk 0:00:17]} 37. gxh5 {[%clk 0:00:02]}  Rd4+ {[%clk 0:00:17]} 38. Ke3 {[%clk 0:00:02]}  Rh4 {[%clk 0:00:17]} 39. Bc3 {[%clk 0:00:02]}  Rxh5 {[%clk 0:00:17]} 40. Rc1 {[%clk 0:00:02]}  Rxh2 {[%clk 0:00:17]} 41. Rg1 {[%clk 0:00:03]}  Kf5 {[%clk 0:00:15]} 42. Rg3 {[%clk 0:00:01]}  Rch8 {[%clk 0:00:10]} 43. a4 {[%clk 0:00:01]}  R2h3 {[%clk 0:00:09]} 44. Rg1 {[%clk 0:00:02]}  Rh1 {[%clk 0:00:09]} 45. Rg4 {[%clk 0:00:01]}  R8h4 {[%clk 0:00:09]} 46. Rg2 {[%clk 0:00:02]}  Ra1 {[%clk 0:00:08]} 47. a5 {[%clk 0:00:02]}  Rh3 {[%clk 0:00:07]} 48. Rg4 {[%clk 0:00:01]}  Rh4 {[%clk 0:00:07]} 49. Rg2 {[%clk 0:00:02]}  e4 {[%clk 0:00:05]} 50. Kf2 {[%clk 0:00:02]}  exf3 {[%clk 0:00:03]} 51. exf3 {[%clk 0:00:02]}  Rh3 {[%clk 0:00:03]} 52. Bd2 {[%clk 0:00:00]}  Ra2 {[%clk 0:00:03]} 0-1


[Site "https://www.chess.com"]

[Event "Titled Tuesday Blitz June 13 Early 2023"]
[White "Gharibyan, Mamikon"]
[Black "Carlsen, Magnus"]
[WhiteFideId "13308300"]
[BlackFideId "1503014"]
[WhiteElo "2445"]
[BlackElo "2858"]
[Result "0-1"]
[Round "5"]
[TimeControl "180+2"]
[Date "2023.06.13"]
[WhiteClock "0:00:01"]
[BlackClock "0:00:39"]
[Board "9"]

1. d4 {[%clk 0:02:58]}  d5 {[%clk 0:02:57]} 2. c4 {[%clk 0:02:57]}  e6 {[%clk 0:02:56]} 3. Nc3 {[%clk 0:02:57]}  Nf6 {[%clk 0:02:55]} 4. cxd5 {[%clk 0:02:56]}  exd5 {[%clk 0:02:56]} 5. Bg5 {[%clk 0:02:55]}  c6 {[%clk 0:02:54]} 6. e3 {[%clk 0:02:54]}  Be7 {[%clk 0:02:54]} 7. Bd3 {[%clk 0:02:53]}  h6 {[%clk 0:02:54]} 8. Bf4 {[%clk 0:02:49]}  O-O {[%clk 0:02:49]} 9. h3 {[%clk 0:02:43]}  Bd6 {[%clk 0:02:43]} 10. Qf3 {[%clk 0:02:42]}  Re8 {[%clk 0:02:40]} 11. Nge2 {[%clk 0:02:40]}  Bxf4 {[%clk 0:02:39]} 12. Nxf4 {[%clk 0:02:36]}  Nbd7 {[%clk 0:02:40]} 13. g4 {[%clk 0:02:32]}  c5 {[%clk 0:02:33]} 14. O-O-O {[%clk 0:02:28]}  cxd4 {[%clk 0:02:30]} 15. exd4 {[%clk 0:02:27]}  Ne4 {[%clk 0:02:30]} 16. Nfxd5 {[%clk 0:02:17]}  Nxc3 {[%clk 0:02:19]} 17. Nxc3 {[%clk 0:02:13]}  Nf6 {[%clk 0:02:16]} 18. Bc4 {[%clk 0:02:04]}  Bd7 {[%clk 0:02:12]} 19. Kb1 {[%clk 0:02:02]}  b5 {[%clk 0:02:12]} 20. Nxb5 {[%clk 0:01:56]}  Rb8 {[%clk 0:02:00]} 21. Nc3 {[%clk 0:01:40]}  Rb4 {[%clk 0:01:49]} 22. Bb3 {[%clk 0:01:36]}  a5 {[%clk 0:01:48]} 23. Nd5 {[%clk 0:01:27]}  Nxd5 {[%clk 0:01:47]} 24. Qxd5 {[%clk 0:01:26]}  Rf8 {[%clk 0:01:44]} 25. Rhe1 {[%clk 0:01:18]}  a4 {[%clk 0:01:33]} 26. Bc2 {[%clk 0:01:14]}  Qb6 {[%clk 0:01:33]} 27. Qxd7 {[%clk 0:00:42]}  Rxb2+ {[%clk 0:01:33]} 28. Kc1 {[%clk 0:00:41]}  Rxa2 {[%clk 0:01:33]} 29. Qf5 {[%clk 0:00:36]}  Qb2+ {[%clk 0:01:28]} 30. Kd2 {[%clk 0:00:36]}  Qxd4+ {[%clk 0:01:26]} 31. Qd3 {[%clk 0:00:29]}  Rxc2+ {[%clk 0:00:59]} 32. Kxc2 {[%clk 0:00:28]}  Rc8+ {[%clk 0:00:59]} 33. Kd2 {[%clk 0:00:24]}  Qb2+ {[%clk 0:00:59]} 34. Ke3 {[%clk 0:00:24]}  Rc3 {[%clk 0:00:59]} 35. Re2 {[%clk 0:00:20]}  Qb6+ {[%clk 0:00:53]} 36. Kf3 {[%clk 0:00:16]}  Qc6+ {[%clk 0:00:53]} 37. Re4 {[%clk 0:00:13]}  a3 {[%clk 0:00:43]} 38. Kf4 {[%clk 0:00:07]}  Rxd3 {[%clk 0:00:40]} 39. Rxd3 {[%clk 0:00:01]}  a2 {[%clk 0:00:39]} 0-1


[Site "https://www.chess.com"]

[Event "Titled Tuesday Blitz June 13 Early 2023"]
[White "Nihal Sarin"]
[Black "Talibov, Shiroghlan"]
[WhiteFideId "25092340"]
[BlackFideId "13429078"]
[WhiteElo "2689"]
[BlackElo "2274"]
[Result "1-0"]
[Round "5"]
[TimeControl "180+2"]
[Date "2023.06.13"]
[WhiteClock "0:00:37"]
[BlackClock "0:00:05"]
[Board "10"]

1. d4 {[%clk 0:03:00]}  Nf6 {[%clk 0:02:58]} 2. Nf3 {[%clk 0:03:01]}  d5 {[%clk 0:02:55]} 3. c4 {[%clk 0:03:01]}  e6 {[%clk 0:02:54]} 4. g3 {[%clk 0:03:02]}  Be7 {[%clk 0:02:52]} 5. Bg2 {[%clk 0:03:02]}  O-O {[%clk 0:02:52]} 6. Qd3 {[%clk 0:03:03]}  dxc4 {[%clk 0:02:46]} 7. Qxc4 {[%clk 0:03:04]}  a6 {[%clk 0:02:47]} 8. Ne5 {[%clk 0:02:56]}  Nbd7 {[%clk 0:02:41]} 9. O-O {[%clk 0:02:56]}  c6 {[%clk 0:02:11]} 10. Nc3 {[%clk 0:02:51]}  Nd5 {[%clk 0:02:09]} 11. Nd3 {[%clk 0:02:40]}  Re8 {[%clk 0:02:07]} 12. Rd1 {[%clk 0:02:39]}  Bf8 {[%clk 0:01:58]} 13. e4 {[%clk 0:02:35]}  Nxc3 {[%clk 0:01:58]} 14. Qxc3 {[%clk 0:02:35]}  e5 {[%clk 0:01:57]} 15. Be3 {[%clk 0:02:34]}  exd4 {[%clk 0:01:54]} 16. Bxd4 {[%clk 0:02:35]}  Qe7 {[%clk 0:01:37]} 17. Rac1 {[%clk 0:02:35]}  Nf6 {[%clk 0:01:30]} 18. Bc5 {[%clk 0:02:21]}  Qc7 {[%clk 0:01:25]} 19. Bxf8 {[%clk 0:02:20]}  Kxf8 {[%clk 0:01:18]} 20. e5 {[%clk 0:02:20]}  Nd7 {[%clk 0:01:18]} 21. f4 {[%clk 0:02:18]}  Kg8 {[%clk 0:01:18]} 22. Nf2 {[%clk 0:02:05]}  Qb6 {[%clk 0:01:10]} 23. Qd4 {[%clk 0:02:01]}  Qxd4 {[%clk 0:01:09]} 24. Rxd4 {[%clk 0:02:01]}  Nf8 {[%clk 0:01:10]} 25. Ne4 {[%clk 0:02:02]}  Be6 {[%clk 0:01:06]} 26. Nd6 {[%clk 0:02:01]}  Re7 {[%clk 0:01:07]} 27. Rb4 {[%clk 0:01:53]}  Ra7 {[%clk 0:01:04]} 28. a3 {[%clk 0:01:34]}  g6 {[%clk 0:01:01]} 29. Kf2 {[%clk 0:01:32]}  Rc7 {[%clk 0:00:56]} 30. Ne8 {[%clk 0:01:24]}  Rc8 {[%clk 0:00:48]} 31. Nf6+ {[%clk 0:01:23]}  Kg7 {[%clk 0:00:48]} 32. Rd1 {[%clk 0:01:23]}  b5 {[%clk 0:00:44]} 33. Rbd4 {[%clk 0:01:19]}  c5 {[%clk 0:00:38]} 34. Rd8 {[%clk 0:01:20]}  Rxd8 {[%clk 0:00:36]} 35. Rxd8 {[%clk 0:01:21]}  a5 {[%clk 0:00:30]} 36. g4 {[%clk 0:01:06]}  b4 {[%clk 0:00:29]} 37. Be4 {[%clk 0:01:07]}  Re7 {[%clk 0:00:15]} 38. axb4 {[%clk 0:00:43]}  axb4 {[%clk 0:00:14]} 39. Rb8 {[%clk 0:00:37]}  Nd7 {[%clk 0:00:05]} 40. Rg8+ {[%clk 0:00:37]} 1-0


[Site "https://www.chess.com"]

[Event "Titled Tuesday Blitz June 13 Early 2023"]
[White "Pranesh M"]
[Black "Krzyzanowski, Marcin"]
[WhiteFideId "35028600"]
[BlackFideId "1132199"]
[WhiteElo "2437"]
[BlackElo "2471"]
[Result "1-0"]
[Round "5"]
[TimeControl "180+2"]
[Date "2023.06.13"]
[WhiteClock "0:01:33"]
[BlackClock "0:00:13"]
[Board "12"]

1. e4 {[%clk 0:03:00]}  e5 {[%clk 0:02:58]} 2. Nf3 {[%clk 0:03:01]}  Nc6 {[%clk 0:02:58]} 3. Bc4 {[%clk 0:03:01]}  Nf6 {[%clk 0:02:57]} 4. Ng5 {[%clk 0:03:01]}  d5 {[%clk 0:02:56]} 5. exd5 {[%clk 0:03:02]}  Na5 {[%clk 0:02:55]} 6. Bb5+ {[%clk 0:03:03]}  c6 {[%clk 0:02:55]} 7. dxc6 {[%clk 0:03:04]}  bxc6 {[%clk 0:02:56]} 8. Qf3 {[%clk 0:03:04]}  Be7 {[%clk 0:02:51]} 9. Bd3 {[%clk 0:03:04]}  O-O {[%clk 0:02:42]} 10. Nc3 {[%clk 0:03:05]}  h6 {[%clk 0:02:39]} 11. Nge4 {[%clk 0:03:04]}  Nxe4 {[%clk 0:02:36]} 12. Bxe4 {[%clk 0:02:59]}  Be6 {[%clk 0:02:02]} 13. Bf5 {[%clk 0:02:54]}  Bxf5 {[%clk 0:01:57]} 14. Qxf5 {[%clk 0:02:55]}  Nc4 {[%clk 0:01:56]} 15. O-O {[%clk 0:02:47]}  Rb8 {[%clk 0:01:41]} 16. b3 {[%clk 0:02:41]}  Nd6 {[%clk 0:01:29]} 17. Qxe5 {[%clk 0:02:36]}  Bf6 {[%clk 0:01:29]} 18. Qf4 {[%clk 0:02:36]}  Re8 {[%clk 0:01:25]} 19. Bb2 {[%clk 0:02:31]}  Bg5 {[%clk 0:01:17]} 20. Qf3 {[%clk 0:02:30]}  c5 {[%clk 0:01:13]} 21. d3 {[%clk 0:02:27]}  Rb4 {[%clk 0:01:03]} 22. Rae1 {[%clk 0:02:24]}  Rxe1 {[%clk 0:00:56]} 23. Rxe1 {[%clk 0:02:25]}  c4 {[%clk 0:00:47]} 24. Nd5 {[%clk 0:02:12]}  Rb8 {[%clk 0:00:37]} 25. dxc4 {[%clk 0:02:07]}  Nxc4 {[%clk 0:00:37]} 26. Bxg7 {[%clk 0:01:45]}  Kxg7 {[%clk 0:00:32]} 27. bxc4 {[%clk 0:01:44]}  Qa5 {[%clk 0:00:32]} 28. Qe4 {[%clk 0:01:39]}  Rb6 {[%clk 0:00:27]} 29. Nxb6 {[%clk 0:01:38]}  Qxb6 {[%clk 0:00:23]} 30. h4 {[%clk 0:01:36]}  Bf6 {[%clk 0:00:13]} 31. Re3 {[%clk 0:01:33]} 1-0


[Site "https://www.chess.com"]

[Event "Titled Tuesday Blitz June 13 Early 2023"]
[White "Yeletsky, Ivan"]
[Black "Andreikin, Dmitry"]
[WhiteFideId "24180327"]
[BlackFideId "4158814"]
[WhiteElo "2380"]
[BlackElo "2736"]
[Result "1-0"]
[Round "5"]
[TimeControl "180+2"]
[Date "2023.06.13"]
[WhiteClock "0:00:56"]
[BlackClock "0:00:48"]
[Board "13"]

1. c4 {[%clk 0:02:58]}  e6 {[%clk 0:02:55]} 2. d4 {[%clk 0:02:56]}  Nf6 {[%clk 0:02:52]} 3. Nc3 {[%clk 0:02:52]}  Bb4 {[%clk 0:02:49]} 4. e3 {[%clk 0:02:48]}  O-O {[%clk 0:02:48]} 5. Bd3 {[%clk 0:02:49]}  d6 {[%clk 0:02:45]} 6. Ne2 {[%clk 0:02:48]}  e5 {[%clk 0:02:43]} 7. O-O {[%clk 0:02:46]}  Re8 {[%clk 0:02:42]} 8. a3 {[%clk 0:02:44]}  Bxc3 {[%clk 0:02:40]} 9. Nxc3 {[%clk 0:02:45]}  Nc6 {[%clk 0:02:40]} 10. Bc2 {[%clk 0:02:34]}  Bg4 {[%clk 0:02:36]} 11. f3 {[%clk 0:02:34]}  exd4 {[%clk 0:02:27]} 12. exd4 {[%clk 0:02:27]}  Bh5 {[%clk 0:02:27]} 13. Bg5 {[%clk 0:02:20]}  h6 {[%clk 0:02:20]} 14. Bh4 {[%clk 0:02:20]}  a5 {[%clk 0:02:09]} 15. b3 {[%clk 0:01:58]}  Kh8 {[%clk 0:01:56]} 16. Ra2 {[%clk 0:01:58]}  Rg8 {[%clk 0:01:28]} 17. Ne4 {[%clk 0:01:17]}  g5 {[%clk 0:01:27]} 18. Be1 {[%clk 0:01:16]}  Nxe4 {[%clk 0:01:25]} 19. Bxe4 {[%clk 0:01:17]}  Bg6 {[%clk 0:01:24]} 20. Raf2 {[%clk 0:01:14]}  Qf6 {[%clk 0:01:14]} 21. Bc3 {[%clk 0:01:14]}  Rae8 {[%clk 0:01:13]} 22. Qd2 {[%clk 0:01:11]}  Kh7 {[%clk 0:01:13]} 23. d5 {[%clk 0:01:02]}  Ne5 {[%clk 0:01:13]} 24. f4 {[%clk 0:01:03]}  gxf4 {[%clk 0:00:59]} 25. Rxf4 {[%clk 0:01:04]}  Qe7 {[%clk 0:00:49]} 26. Bxe5 {[%clk 0:00:56]}  Qxe5 {[%clk 0:00:49]} 27. Rxf7+ {[%clk 0:00:56]}  Rg7 {[%clk 0:00:50]} 28. Bxg6+ {[%clk 0:00:56]}  Kxg6 {[%clk 0:00:50]} 29. Qd3+ {[%clk 0:00:56]}  Qe4 {[%clk 0:00:48]} 30. Qg3+ {[%clk 0:00:56]} 1-0


[Site "https://www.chess.com"]

[Event "Titled Tuesday Blitz June 13 Early 2023"]
[White "Matlakov, Maxim"]
[Black "Chigaev, Maksim"]
[WhiteFideId "4168003"]
[BlackFideId "4108116"]
[WhiteElo "2666"]
[BlackElo "2561"]
[Result "0-1"]
[Round "5"]
[TimeControl "180+2"]
[Date "2023.06.13"]
[WhiteClock "0:00:03"]
[BlackClock "0:00:06"]
[Board "14"]

1. e4 {[%clk 0:03:00]}  e6 {[%clk 0:02:59]} 2. d3 {[%clk 0:02:59]}  d5 {[%clk 0:02:59]} 3. Nd2 {[%clk 0:03:00]}  c5 {[%clk 0:02:59]} 4. Ngf3 {[%clk 0:03:00]}  Nc6 {[%clk 0:03:00]} 5. g3 {[%clk 0:03:00]}  Nf6 {[%clk 0:03:00]} 6. Bg2 {[%clk 0:03:01]}  g6 {[%clk 0:03:01]} 7. O-O {[%clk 0:02:58]}  Bg7 {[%clk 0:03:01]} 8. Re1 {[%clk 0:02:58]}  O-O {[%clk 0:03:01]} 9. c3 {[%clk 0:02:56]}  a5 {[%clk 0:03:01]} 10. a4 {[%clk 0:02:50]}  b6 {[%clk 0:03:02]} 11. exd5 {[%clk 0:02:48]}  exd5 {[%clk 0:02:57]} 12. Nb3 {[%clk 0:02:48]}  h6 {[%clk 0:02:52]} 13. Bf4 {[%clk 0:02:48]}  Be6 {[%clk 0:02:43]} 14. d4 {[%clk 0:02:47]}  c4 {[%clk 0:02:39]} 15. Nbd2 {[%clk 0:02:47]}  Re8 {[%clk 0:02:38]} 16. b3 {[%clk 0:02:46]}  Rc8 {[%clk 0:02:31]} 17. Ne5 {[%clk 0:02:44]}  cxb3 {[%clk 0:02:13]} 18. Qxb3 {[%clk 0:02:40]}  Ne7 {[%clk 0:02:14]} 19. Rab1 {[%clk 0:02:32]}  Nf5 {[%clk 0:02:07]} 20. Qxb6 {[%clk 0:01:17]}  Qxb6 {[%clk 0:02:08]} 21. Rxb6 {[%clk 0:01:17]}  g5 {[%clk 0:01:44]} 22. Be3 {[%clk 0:01:17]}  Rxc3 {[%clk 0:01:43]} 23. Ra6 {[%clk 0:01:16]}  Nd7 {[%clk 0:01:22]} 24. Rxe6 {[%clk 0:00:46]}  Rxe6 {[%clk 0:01:21]} 25. Bxd5 {[%clk 0:00:45]}  Re7 {[%clk 0:00:57]} 26. Ne4 {[%clk 0:00:45]}  Rxe3 {[%clk 0:00:36]} 27. fxe3 {[%clk 0:00:42]}  Nxe5 {[%clk 0:00:31]} 28. dxe5 {[%clk 0:00:42]}  Rxe5 {[%clk 0:00:28]} 29. Bc6 {[%clk 0:00:32]}  g4 {[%clk 0:00:27]} 30. Kf2 {[%clk 0:00:30]}  h5 {[%clk 0:00:27]} 31. Rb1 {[%clk 0:00:20]}  Bh6 {[%clk 0:00:28]} 32. Rb3 {[%clk 0:00:15]}  Kg7 {[%clk 0:00:23]} 33. Bd7 {[%clk 0:00:15]}  Nxe3 {[%clk 0:00:16]} 34. Nd6 {[%clk 0:00:15]}  Nd1+ {[%clk 0:00:13]} 35. Kf1 {[%clk 0:00:14]}  Ne3+ {[%clk 0:00:10]} 36. Kg1 {[%clk 0:00:14]}  Rd5 {[%clk 0:00:07]} 37. Ne8+ {[%clk 0:00:08]}  Kf8 {[%clk 0:00:04]} 38. Nf6 {[%clk 0:00:08]}  Rd1+ {[%clk 0:00:05]} 39. Kf2 {[%clk 0:00:08]}  Rf1+ {[%clk 0:00:06]} 40. Ke2 {[%clk 0:00:03]}  Rxf6 {[%clk 0:00:06]} 0-1


[Site "https://www.chess.com"]

[Event "Titled Tuesday Blitz June 13 Early 2023"]
[White "Kramnik, Vladimir"]
[Black "Csonka, Balazs"]
[WhiteFideId "4101588"]
[BlackFideId "742910"]
[WhiteElo "2703"]
[BlackElo "2404"]
[Result "1-0"]
[Round "5"]
[TimeControl "180+2"]
[Date "2023.06.13"]
[WhiteClock "0:00:31"]
[BlackClock "0:00:03"]
[Board "16"]

1. e4 {[%clk 0:03:00]}  e5 {[%clk 0:02:58]} 2. Nf3 {[%clk 0:03:00]}  Nc6 {[%clk 0:02:59]} 3. g3 {[%clk 0:03:01]}  Nf6 {[%clk 0:02:55]} 4. d3 {[%clk 0:03:01]}  Bc5 {[%clk 0:02:55]} 5. Bg2 {[%clk 0:03:01]}  O-O {[%clk 0:02:54]} 6. O-O {[%clk 0:03:01]}  d6 {[%clk 0:02:54]} 7. c3 {[%clk 0:03:01]}  a5 {[%clk 0:02:52]} 8. a4 {[%clk 0:03:00]}  h6 {[%clk 0:02:48]} 9. Re1 {[%clk 0:03:00]}  Re8 {[%clk 0:02:46]} 10. Na3 {[%clk 0:02:58]}  Ba7 {[%clk 0:02:08]} 11. Nb5 {[%clk 0:02:49]}  Bb6 {[%clk 0:02:08]} 12. h3 {[%clk 0:02:40]}  Bd7 {[%clk 0:01:54]} 13. d4 {[%clk 0:02:37]}  exd4 {[%clk 0:01:37]} 14. Nfxd4 {[%clk 0:02:37]}  Nxd4 {[%clk 0:01:16]} 15. cxd4 {[%clk 0:02:28]}  Bxb5 {[%clk 0:01:08]} 16. axb5 {[%clk 0:02:28]}  Qd7 {[%clk 0:01:09]} 17. Qd3 {[%clk 0:02:11]}  Re7 {[%clk 0:00:57]} 18. Bd2 {[%clk 0:02:01]}  Qe8 {[%clk 0:00:51]} 19. Kh2 {[%clk 0:01:46]}  Qb8 {[%clk 0:00:39]} 20. f4 {[%clk 0:01:41]}  Qa7 {[%clk 0:00:32]} 21. e5 {[%clk 0:01:35]}  dxe5 {[%clk 0:00:28]} 22. fxe5 {[%clk 0:01:28]}  Nd7 {[%clk 0:00:24]} 23. Bc3 {[%clk 0:01:28]}  Rae8 {[%clk 0:00:22]} 24. Rad1 {[%clk 0:01:17]}  Qb8 {[%clk 0:00:22]} 25. Qf3 {[%clk 0:01:15]}  c5 {[%clk 0:00:16]} 26. bxc6 {[%clk 0:01:12]}  bxc6 {[%clk 0:00:17]} 27. Qxc6 {[%clk 0:01:10]}  Nf8 {[%clk 0:00:12]} 28. Rf1 {[%clk 0:00:48]}  Ng6 {[%clk 0:00:07]} 29. Qf3 {[%clk 0:00:46]}  Rd8 {[%clk 0:00:06]} 30. Qh5 {[%clk 0:00:40]}  Qa7 {[%clk 0:00:05]} 31. d5 {[%clk 0:00:37]}  Be3 {[%clk 0:00:03]} 32. e6 {[%clk 0:00:31]} 1-0


[Site "https://www.chess.com"]